fUSD/lending_fUSD_20240712
["ID","MTS","AMOUNT","RATE_DAILY","PERIOD"]
[331819378,1720770679227,-500.0,0.00014246,2]
[331819379,1720770679237,-500.0,0.00014246,2]
[331819380,1720770679246,-500.0,0.00014246,2]
[331819381,1720770679256,-717.13,0.00014246,2]
[331819382,1720770679266,-500.0,0.00014246,2]
[331819383,1720770679275,-500.0,0.00014246,2]
[331819384,1720770679285,-500.0,0.00014246,2]
[331819385,1720770679295,-685.24,0.00014246,2]
[331819386,1720770679305,-546.44,0.00014246,2]
[331819387,1720770679314,-500.0,0.00014246,2]
[331819388,1720770679323,-500.0,0.00014246,2]
[331819389,1720770679332,-500.0,0.00014246,2]
[331819390,1720770679342,-1262.99,0.00014246,2]
[331819391,1720770679351,-502.52,0.00014246,2]
[331819392,1720770679361,-530.43,0.00014246,2]
[331819393,1720770679371,-1950.33,0.00014246,2]
[331819394,1720770679380,-691.94,0.00014246,2]
[331819395,1720770679389,-952.38,0.00014246,2]
[331819396,1720770679398,-500.0,0.00014246,2]
[331819397,1720770679408,-500.0,0.00014246,2]
[331819398,1720770679418,-500.0,0.00014246,2]
[331819399,1720770679428,-500.0,0.00014246,2]
[331819400,1720770679438,-500.0,0.00014246,2]
[331819401,1720770679448,-537.93,0.00014246,2]
[331819402,1720770679458,-500.0,0.00014246,2]
[331819403,1720770679467,-531.17,0.00014246,2]
[331819404,1720770679477,-530.08,0.00014246,2]
[331819405,1720770679486,-151.0,0.00014246,2]
[331819406,1720770679496,-322.9562061,0.00014249,2]
[331819407,1720770679507,-169.89534745,0.00014256,2]
[331819408,1720770679516,-200.0,0.00014288,2]
[331819409,1720770679526,-712.0,0.000143,2]
[331819410,1720770679535,-1000.0,0.000143,2]
[331819411,1720770679544,-500.0,0.000143,2]
[331819412,1720770679553,-225.0,0.000143,2]
[331819413,1720770679562,-500.0,0.00014301,2]
[331819414,1720770679571,-500.0,0.00014301,2]
[331819415,1720770679581,-500.0,0.00014301,2]
[331819416,1720770679590,-151.0,0.00014301,2]
[331819417,1720770679600,-500.0,0.00014301,2]
[331819418,1720770679611,-641.97,0.00014301,2]
[331819419,1720770679621,-500.0,0.00014301,2]
[331819420,1720770679630,-500.0,0.00014301,2]
[331819421,1720770679639,-500.0,0.00014301,2]
[331819422,1720770679649,-680.79,0.00014301,2]
[331819423,1720770679658,-500.0,0.00014301,2]
[331819424,1720770679667,-500.0,0.00014301,2]
[331819425,1720770679677,-500.0,0.00014301,2]
[331819426,1720770679688,-159.25,0.00014301,2]
[331819427,1720770679697,-725.57,0.00014301,2]
[331819428,1720770679707,-705.63,0.00014301,2]
[331819429,1720770679716,-500.0,0.00014301,2]
[331819430,1720770679725,-500.0,0.00014301,2]
[331819431,1720770679735,-552.82,0.00014301,2]
[331819432,1720770679744,-500.0,0.00014301,2]
[331819433,1720770679754,-500.0,0.00014301,2]
[331819434,1720770679764,-500.0,0.00014301,2]
[331819435,1720770679774,-500.0,0.00014301,2]
[331819436,1720770679783,-585.17,0.00014301,2]
[331819437,1720770679793,-500.0,0.00014301,2]
[331819438,1720770679802,-500.0,0.00014301,2]
[331819439,1720770679811,-556.86,0.00014301,2]
[331819440,1720770679820,-500.0,0.00014301,2]
[331819441,1720770679830,-500.0,0.00014301,2]
[331819442,1720770679839,-500.0,0.00014301,2]
[331819443,1720770679848,-500.0,0.00014301,2]
[331819444,1720770679858,-865.7,0.00014301,2]
[331819445,1720770679867,-500.0,0.00014301,2]
[331819446,1720770679877,-665.27,0.00014301,2]
[331819447,1720770679887,-539.93,0.00014301,2]
[331819448,1720770679896,-500.0,0.00014301,2]
[331819449,1720770679906,-500.0,0.00014301,2]
[331819450,1720770679915,-659.81,0.00014301,2]
[331819451,1720770679924,-500.0,0.00014301,2]
[331819452,1720770679933,-500.0,0.00014301,2]
[331819453,1720770679943,-1805.19,0.00014301,2]
[331819454,1720770679952,-500.0,0.00014301,2]
[331819455,1720770679961,-500.0,0.00014301,2]
[331819456,1720770679970,-500.0,0.00014301,2]
[331819457,1720770679979,-500.0,0.00014301,2]
[331819458,1720770679989,-500.0,0.00014301,2]
[331819459,1720770679998,-511.46,0.00014301,2]
[331819460,1720770680008,-500.0,0.00014301,2]
[331819461,1720770680017,-500.0,0.00014301,2]
[331819462,1720770680026,-500.0,0.00014301,2]
[331819463,1720770680035,-500.0,0.00014301,2]
[331819464,1720770680044,-594.98115673,0.00014301,2]
[331819465,1720770680053,-809.25,0.00014301,2]
[331819466,1720770680063,-500.0,0.00014301,2]
[331819467,1720770680072,-500.0,0.00014301,2]
[331819468,1720770680081,-500.0,0.00014301,2]
[331819469,1720770680091,-500.0,0.00014301,2]
[331819470,1720770680100,-717.13,0.00014301,2]
[331819471,1720770680109,-500.0,0.00014301,2]
[331819472,1720770680118,-500.0,0.00014301,2]
[331819473,1720770680128,-226.97622692,0.00014301,2]
[331819474,1720770680137,-685.24,0.00014301,2]
[331819475,1720770680147,-546.44,0.00014301,2]
[331819476,1720770680156,-500.0,0.00014301,2]
[331819477,1720770680166,-356.49578616,0.00014301,2]
[331819478,1720770680175,-214.86221878,0.00014301,2]
[331819479,1720770680184,-1262.99,0.00014301,2]
[331819480,1720770680194,-502.52,0.00014301,2]
[331819481,1720770680203,-530.43,0.00014301,2]
[331819482,1720770680213,-1950.33,0.00014301,2]
[331819483,1720770680222,-691.94,0.00014301,2]
[331819484,1720770680233,-952.38,0.00014301,2]
[331819485,1720770680242,-537.45005043,0.00014301,2]
[331819486,1720770680251,-393.37,0.00014301,2]
[331819487,1720770680261,-500.0,0.00014301,2]
[331819488,1720770680270,-500.0,0.00014301,2]
[331819489,1720770680280,-500.0,0.00014301,2]
[331819490,1720770680289,-537.93,0.00014301,2]
[331819491,1720770680298,-500.0,0.00014301,2]
[331819492,1720770680307,-531.17,0.00014301,2]
[331819493,1720770680317,-530.08,0.00014301,2]
[331819494,1720770680326,-17058.69762788,0.00014311,2]
[331819495,1720770680335,-184.5982,0.0001432,2]
[331819496,1720770680344,-32646.46742221,0.00014321,2]
[331819497,1720770680361,-83186.10958184,0.00014321,2]
[331819498,1720770680370,-500.0,0.00014349,2]
[331819499,1720770680379,-289.76245726,0.0001435,2]
[331819500,1720770680388,-4115.38058124,0.0001435,2]
[331819501,1720770680398,-500.0,0.00014355,2]
[331819502,1720770680407,-500.0,0.00014355,2]
[331819503,1720770680416,-500.0,0.00014356,2]
[331819504,1720770680425,-500.0,0.00014356,2]
[331819505,1720770680434,-500.0,0.00014356,2]
[331819506,1720770680443,-500.0,0.00014356,2]
[331819507,1720770680453,-641.97,0.00014356,2]
[331819508,1720770680461,-500.0,0.00014356,2]
[331819509,1720770680471,-500.0,0.00014356,2]
[331819510,1720770680480,-165.05916521,0.00014356,2]
[331819511,1720770680489,-680.79,0.00014356,2]
[331819512,1720770680498,-500.0,0.00014356,2]
[331819513,1720770680508,-500.0,0.00014356,2]
[331819514,1720770680518,-500.0,0.00014356,2]
[331819515,1720770680527,-159.25,0.00014356,2]
[331819516,1720770680536,-725.57,0.00014356,2]
[331819517,1720770680545,-705.63,0.00014356,2]
[331819518,1720770680555,-190.27,0.00014356,2]
[331819519,1720770680565,-304.96558185,0.00014356,2]
[331819520,1720770680575,-552.82,0.00014356,2]
[331819521,1720770680587,-500.0,0.00014356,2]
[331819522,1720770680599,-157.42281136,0.00014356,2]
[331819523,1720770680612,-500.0,0.00014356,2]
[331819524,1720770680623,-500.0,0.00014356,2]
[331819525,1720770680632,-585.17,0.00014356,2]
[331819526,1720770680643,-500.0,0.00014356,2]
[331819527,1720770680653,-500.0,0.00014356,2]
[331819528,1720770680662,-556.86,0.00014356,2]
[331819529,1720770680673,-500.0,0.00014356,2]
[331819530,1720770680685,-500.0,0.00014356,2]
[331819531,1720770680694,-500.0,0.00014356,2]
[331819532,1720770680703,-500.0,0.00014356,2]
[331819533,1720770680713,-865.7,0.00014356,2]
[331819534,1720770680724,-500.0,0.00014356,2]
[331819535,1720770680733,-665.27,0.00014356,2]
[331819536,1720770680743,-539.93,0.00014356,2]
[331819537,1720770680754,-537.65525675,0.00014356,2]
[331819538,1720770680764,-500.0,0.00014356,2]
[331819539,1720770680774,-659.81,0.00014356,2]
[331819540,1720770680783,-500.0,0.00014356,2]
[331819541,1720770680793,-500.0,0.00014356,2]
[331819542,1720770680802,-1805.19,0.00014356,2]
[331819543,1720770680813,-450.38119264,0.00014356,2]
[331819544,1720770680823,-500.0,0.00014356,2]
[331819545,1720770680832,-500.0,0.00014356,2]
[331819546,1720770680841,-500.0,0.00014356,2]
[331819547,1720770680850,-500.0,0.00014356,2]
[331819548,1720770680860,-511.46,0.00014356,2]
[331819549,1720770680871,-500.0,0.00014356,2]
[331819550,1720770680880,-500.0,0.00014356,2]
[331819551,1720770680891,-500.0,0.00014356,2]
[331819552,1720770680902,-500.0,0.00014356,2]
[331819553,1720770680913,-809.25,0.00014356,2]
[331819554,1720770680923,-500.0,0.00014356,2]
[331819555,1720770680933,-500.0,0.00014356,2]
[331819556,1720770680943,-500.0,0.00014356,2]
[331819557,1720770680954,-500.0,0.00014356,2]
[331819558,1720770680966,-717.13,0.00014356,2]
[331819559,1720770680976,-173.61480325,0.00014356,2]
[331819560,1720770680986,-500.0,0.00014356,2]
[331819561,1720770680995,-685.24,0.00014356,2]
[331819562,1720770681004,-546.44,0.00014356,2]
[331819563,1720770681015,-500.0,0.00014356,2]
[331819564,1720770681026,-1262.99,0.00014356,2]
[331819565,1720770681035,-502.52,0.00014356,2]
[331819566,1720770681044,-530.43,0.00014356,2]
[331819567,1720770681053,-1950.33,0.00014356,2]
[331819568,1720770681063,-691.94,0.00014356,2]
[331819569,1720770681072,-952.38,0.00014356,2]
[331819570,1720770681081,-151.0,0.00014356,2]
[331819571,1720770681090,-500.0,0.00014356,2]
[331819572,1720770681100,-500.0,0.00014356,2]
[331819573,1720770681111,-500.0,0.00014356,2]
[331819574,1720770681121,-537.93,0.00014356,2]
[331819575,1720770681130,-520.94251395,0.00014356,2]
[331819576,1720770681139,-531.17,0.00014356,2]
[331819577,1720770681148,-530.08,0.00014356,2]
[331819578,1720770681158,-719.0,0.00014383,2]
[331819579,1720770681167,-2000.0,0.000144,2]
[331819580,1720770681177,-1415.0,0.000144,2]
[331819581,1720770681187,-500.0,0.0001441,2]
[331819582,1720770681196,-500.0,0.0001441,2]
[331819583,1720770681205,-500.0,0.0001441,2]
[331819584,1720770681215,-500.0,0.0001441,2]
[331819585,1720770681224,-641.97,0.0001441,2]
[331819586,1720770681233,-500.0,0.0001441,2]
[331819587,1720770681243,-500.0,0.0001441,2]
[331819588,1720770681252,-680.79,0.0001441,2]
[331819589,1720770681265,-500.0,0.0001441,2]
[331819590,1720770681276,-500.0,0.0001441,2]
[331819591,1720770681285,-500.0,0.0001441,2]
[331819592,1720770681295,-159.25,0.0001441,2]
[331819593,1720770681305,-725.57,0.0001441,2]
[331819594,1720770681314,-705.63,0.0001441,2]
[331819595,1720770681323,-552.82,0.0001441,2]
[331819596,1720770681333,-591.9480914,0.0001441,2]
[331819597,1720770681344,-342.47495749,0.0001441,2]
[331819598,1720770681354,-252.04293678,0.0001441,2]
[331819599,1720770681363,-585.17,0.0001441,2]
[331819600,1720770681373,-415.97,0.0001441,2]
[331819601,1720770681382,-500.0,0.0001441,2]
[331819602,1720770681392,-556.86,0.0001441,2]
[331819603,1720770681401,-500.0,0.0001441,2]
[331819604,1720770681411,-500.0,0.0001441,2]
[331819605,1720770681420,-500.0,0.0001441,2]
[331819606,1720770681429,-500.0,0.0001441,2]
[331819607,1720770681438,-865.7,0.0001441,2]
[331819608,1720770681447,-500.0,0.0001441,2]
[331819609,1720770681456,-665.27,0.0001441,2]
[331819610,1720770681465,-539.93,0.0001441,2]
[331819611,1720770681475,-500.0,0.0001441,2]
[331819612,1720770681483,-659.81,0.0001441,2]
[331819613,1720770681493,-500.0,0.0001441,2]
[331819614,1720770681502,-532.7842914,0.0001441,2]
[331819615,1720770681514,-1805.19,0.0001441,2]
[331819616,1720770681524,-500.0,0.0001441,2]
[331819617,1720770681534,-500.0,0.0001441,2]
[331819618,1720770681544,-500.0,0.0001441,2]
[331819619,1720770681555,-500.0,0.0001441,2]
[331819620,1720770681566,-500.0,0.0001441,2]
[331819621,1720770681576,-511.46,0.0001441,2]
[331819622,1720770681585,-505.67,0.0001441,2]
[331819623,1720770681595,-500.0,0.0001441,2]
[331819624,1720770681610,-500.0,0.0001441,2]
[331819625,1720770681621,-500.0,0.0001441,2]
[331819626,1720770681631,-809.25,0.0001441,2]
[331819627,1720770681641,-500.0,0.0001441,2]
[331819628,1720770681651,-500.0,0.0001441,2]
[331819629,1720770681660,-500.0,0.0001441,2]
[331819630,1720770681669,-500.0,0.0001441,2]
[331819631,1720770681681,-717.13,0.0001441,2]
[331819632,1720770681691,-500.0,0.0001441,2]
[331819633,1720770681699,-685.24,0.0001441,2]
[331819634,1720770681708,-546.44,0.0001441,2]
[331819635,1720770681719,-500.0,0.0001441,2]
[331819636,1720770681729,-1262.99,0.0001441,2]
[331819637,1720770681739,-502.52,0.0001441,2]
[331819638,1720770681750,-530.43,0.0001441,2]
[331819639,1720770681762,-1950.33,0.0001441,2]
[331819640,1720770681771,-691.94,0.0001441,2]
[331819641,1720770681782,-952.38,0.0001441,2]
[331819642,1720770681791,-500.0,0.0001441,2]
[331819643,1720770681801,-622.66213497,0.0001441,2]
[331819644,1720770681810,-500.0,0.0001441,2]
[331819645,1720770681819,-537.93,0.0001441,2]
[331819646,1720770681828,-531.17,0.0001441,2]
[331819647,1720770681837,-530.08,0.0001441,2]
[331819648,1720770681848,-154.88895629,0.0001446,2]
[331819649,1720770681857,-1328.54556321,0.00014464,2]
[331819650,1720770681867,-151.0,0.00014464,2]
[331819651,1720770681876,-151.0,0.00014464,2]
[331819652,1720770681885,-500.0,0.00014464,2]
[331819653,1720770681893,-500.0,0.00014465,2]
[331819654,1720770681903,-500.0,0.00014465,2]
[331819655,1720770681912,-500.0,0.00014465,2]
[331819656,1720770681921,-500.0,0.00014465,2]
[331819657,1720770681931,-641.97,0.00014465,2]
[331819658,1720770681940,-500.0,0.00014465,2]
[331819659,1720770681949,-500.0,0.00014465,2]
[331819660,1720770681960,-680.79,0.00014465,2]
[331819661,1720770681969,-500.0,0.00014465,2]
[331819662,1720770681978,-500.0,0.00014465,2]
[331819663,1720770681988,-500.0,0.00014465,2]
[331819664,1720770681997,-159.25,0.00014465,2]
[331819665,1720770682006,-725.57,0.00014465,2]
[331819666,1720770682017,-705.63,0.00014465,2]
[331819667,1720770682026,-552.82,0.00014465,2]
[331819668,1720770682035,-585.17,0.00014465,2]
[331819669,1720770682044,-500.0,0.00014465,2]
[331819670,1720770682053,-556.86,0.00014465,2]
[331819671,1720770682062,-500.0,0.00014465,2]
[331819672,1720770682072,-500.0,0.00014465,2]
[331819673,1720770682081,-474.04565768,0.00014465,2]
[331819674,1720770682090,-500.0,0.00014465,2]
[331819675,1720770682100,-865.7,0.00014465,2]
[331819676,1720770682109,-500.0,0.00014465,2]
[331819677,1720770682118,-665.27,0.00014465,2]
[331819678,1720770682127,-539.93,0.00014465,2]
[331819679,1720770682137,-500.0,0.00014465,2]
[331819680,1720770682146,-659.81,0.00014465,2]
[331819681,1720770682314,-500.0,0.00014465,2]
[331819682,1720770682324,-1805.19,0.00014465,2]
[331819683,1720770682334,-500.0,0.00014465,2]
[331819684,1720770682343,-500.0,0.00014465,2]
[331819685,1720770682352,-500.0,0.00014465,2]
[331819686,1720770682361,-500.0,0.00014465,2]
[331819687,1720770682370,-511.46,0.00014465,2]
[331819688,1720770682379,-500.0,0.00014465,2]
[331819689,1720770682389,-500.0,0.00014465,2]
[331819690,1720770682398,-500.0,0.00014465,2]
[331819691,1720770682407,-809.25,0.00014465,2]
[331819692,1720770682417,-500.0,0.00014465,2]
[331819693,1720770682426,-500.0,0.00014465,2]
[331819694,1720770682435,-500.0,0.00014465,2]
[331819695,1720770682444,-500.0,0.00014465,2]
[331819696,1720770682453,-717.13,0.00014465,2]
[331819697,1720770682463,-500.0,0.00014465,2]
[331819698,1720770682472,-546.44,0.00014465,2]
[331819699,1720770682481,-685.24,0.00014465,2]
[331819700,1720770682491,-500.0,0.00014465,2]
[331819701,1720770682500,-1262.99,0.00014465,2]
[331819702,1720770682508,-502.52,0.00014465,2]
[331819703,1720770682519,-530.43,0.00014465,2]
[331819704,1720770682528,-1950.33,0.00014465,2]
[331819705,1720770682538,-691.94,0.00014465,2]
[331819706,1720770682548,-952.38,0.00014465,2]
[331819707,1720770682557,-500.0,0.00014465,2]
[331819708,1720770682566,-500.0,0.00014465,2]
[331819709,1720770682576,-537.93,0.00014465,2]
[331819710,1720770682585,-531.17,0.00014465,2]
[331819711,1720770682594,-530.08,0.00014465,2]
[331819712,1720770682607,-151.0,0.00014466,2]
[331819713,1720770682616,-25876.56404074,0.00014466,2]
[331819714,1720770682631,-79509.6545,0.00014466,2]
[331819715,1720770682645,-10446.35846331,0.00014466,2]
[331819716,1720770682655,-151.0,0.00014466,2]
[331819717,1720770682664,-197.51,0.00014469,2]
[331819718,1720770682673,-500.0,0.00014519,2]
[331819719,1720770682684,-500.0,0.0001452,2]
[331819720,1720770682693,-500.0,0.0001452,2]
[331819721,1720770682702,-500.0,0.0001452,2]
[331819722,1720770682712,-500.0,0.0001452,2]
[331819723,1720770682721,-641.97,0.0001452,2]
[331819724,1720770682730,-283.34532851,0.0001452,2]
[331819725,1720770682739,-500.0,0.0001452,2]
[331819726,1720770682748,-680.79,0.0001452,2]
[331819727,1720770682757,-500.0,0.0001452,2]
[331819728,1720770682767,-500.0,0.0001452,2]
[331819729,1720770682777,-500.0,0.0001452,2]
[331819730,1720770682785,-159.25,0.0001452,2]
[331819731,1720770682794,-725.57,0.0001452,2]
[331819732,1720770682804,-705.63,0.0001452,2]
[331819733,1720770682813,-552.82,0.0001452,2]
[331819734,1720770682822,-585.17,0.0001452,2]
[331819735,1720770682831,-500.0,0.0001452,2]
[331819736,1720770682840,-556.86,0.0001452,2]
[331819737,1720770682849,-500.0,0.0001452,2]
[331819738,1720770682859,-500.0,0.0001452,2]
[331819739,1720770682869,-500.0,0.0001452,2]
[331819740,1720770682879,-865.7,0.0001452,2]
[331819741,1720770682888,-500.0,0.0001452,2]
[331819742,1720770682899,-665.27,0.0001452,2]
[331819743,1720770682909,-539.93,0.0001452,2]
[331819744,1720770682920,-500.0,0.0001452,2]
[331819745,1720770682930,-659.81,0.0001452,2]
[331819746,1720770682942,-198.68034586,0.0001452,2]
[331819747,1720770682951,-1805.19,0.0001452,2]
[331819748,1720770682960,-500.0,0.0001452,2]
[331819749,1720770682973,-500.0,0.0001452,2]
[331819750,1720770682982,-500.0,0.0001452,2]
[331819751,1720770682991,-500.0,0.0001452,2]
[331819752,1720770683000,-511.46,0.0001452,2]
[331819753,1720770683012,-500.0,0.0001452,2]
[331819754,1720770683021,-500.0,0.0001452,2]
[331819755,1720770683030,-500.0,0.0001452,2]
[331819756,1720770683039,-809.25,0.0001452,2]
[331819757,1720770683048,-500.0,0.0001452,2]
[331819758,1720770683059,-500.0,0.0001452,2]
[331819759,1720770683068,-500.0,0.0001452,2]
[331819760,1720770683079,-500.0,0.0001452,2]
[331819761,1720770683088,-717.13,0.0001452,2]
[331819762,1720770683097,-500.0,0.0001452,2]
[331819763,1720770683108,-546.44,0.0001452,2]
[331819764,1720770683118,-685.24,0.0001452,2]
[331819765,1720770683127,-500.0,0.0001452,2]
[331819766,1720770683136,-1262.99,0.0001452,2]
[331819767,1720770683146,-502.52,0.0001452,2]
[331819768,1720770683156,-530.43,0.0001452,2]
[331819769,1720770683165,-1950.33,0.0001452,2]
[331819770,1720770683175,-691.94,0.0001452,2]
[331819771,1720770683185,-952.38,0.0001452,2]
[331819772,1720770683194,-500.0,0.0001452,2]
[331819773,1720770683204,-500.0,0.0001452,2]
[331819774,1720770683214,-537.93,0.0001452,2]
[331819775,1720770683223,-531.17,0.0001452,2]
[331819776,1720770683232,-530.08,0.0001452,2]
[331819777,1720770683242,-506.874366,0.00014521,2]
[331819778,1720770683251,-500.0,0.00014521,2]
[331819779,1720770683261,-500.0,0.00014574,2]
[331819780,1720770683271,-500.0,0.00014575,2]
[331819781,1720770683280,-500.0,0.00014575,2]
[331819782,1720770683289,-500.0,0.00014575,2]
[331819783,1720770683299,-152.8647235,0.00014575,2]
[331819784,1720770683309,-641.97,0.00014575,2]
[331819785,1720770683318,-500.0,0.00014575,2]
[331819786,1720770683327,-680.79,0.00014575,2]
[331819787,1720770683337,-500.0,0.00014575,2]
[331819788,1720770683346,-500.0,0.00014575,2]
[331819789,1720770683355,-245.67,0.00014575,2]
[331819790,1720770683365,-159.25,0.00014575,2]
[331819791,1720770683374,-725.57,0.00014575,2]
[331819792,1720770683384,-705.63,0.00014575,2]
[331819793,1720770683393,-552.82,0.00014575,2]
[331819794,1720770683402,-585.17,0.00014575,2]
[331819795,1720770683411,-500.0,0.00014575,2]
[331819796,1720770683421,-556.86,0.00014575,2]
[331819797,1720770683431,-360.69394047,0.00014575,2]
[331819798,1720770683440,-500.0,0.00014575,2]
[331819799,1720770683449,-500.0,0.00014575,2]
[331819800,1720770683459,-865.7,0.00014575,2]
[331819801,1720770683468,-500.0,0.00014575,2]
[331819802,1720770683478,-665.27,0.00014575,2]
[331819803,1720770683487,-539.93,0.00014575,2]
[331819804,1720770683497,-500.0,0.00014575,2]
[331819805,1720770683506,-659.81,0.00014575,2]
[331819806,1720770683518,-1805.19,0.00014575,2]
[331819807,1720770683528,-500.0,0.00014575,2]
[331819808,1720770683537,-500.0,0.00014575,2]
[331819809,1720770683546,-500.0,0.00014575,2]
[331819810,1720770683556,-500.0,0.00014575,2]
[331819811,1720770683565,-511.46,0.00014575,2]
[331819812,1720770683574,-472.82645889,0.00014575,2]
[331819813,1720770683583,-500.0,0.00014575,2]
[331819814,1720770683593,-500.0,0.00014575,2]
[331819815,1720770683604,-809.25,0.00014575,2]
[331819816,1720770683614,-500.0,0.00014575,2]
[331819817,1720770683623,-446.33635283,0.00014575,2]
[331819818,1720770683633,-500.0,0.00014575,2]
[331819819,1720770683643,-500.0,0.00014575,2]
[331819820,1720770683652,-717.13,0.00014575,2]
[331819821,1720770683662,-480.17572948,0.00014575,2]
[331819822,1720770683672,-546.44,0.00014575,2]
[331819823,1720770683684,-685.24,0.00014575,2]
[331819824,1720770683693,-500.0,0.00014575,2]
[331819825,1720770683703,-1222.99186101,0.00014575,2]
[331819826,1720770683718,-39.99813899,0.00014575,2]
[331819827,1720770683727,-502.52,0.00014575,2]
[331819828,1720770683738,-530.43,0.00014575,2]
[331819829,1720770683748,-1950.33,0.00014575,2]
[331819830,1720770683757,-691.94,0.00014575,2]
[331819831,1720770683768,-952.38,0.00014575,2]
[331819832,1720770683778,-264.98837335,0.00014575,2]
[331819833,1720770683788,-500.0,0.00014575,2]
[331819834,1720770683798,-537.93,0.00014575,2]
[331819835,1720770683809,-531.17,0.00014575,2]
[331819836,1720770683819,-530.08,0.00014575,2]
[331819837,1720770683829,-500.0,0.00014594,2]
[331819838,1720770683839,-200.0,0.00014594,2]
[331819839,1720770683848,-29459.55148766,0.00014611,2]
[331819840,1720770686080,588.47883677,9.102e-05,2]
[331819841,1720770729646,370.86701343,0.00011033,2]
[331819842,1720770731970,872.78785618,0.00011033,2]
[331819843,1720770826127,170.22,0.00010274,2]
[331819844,1720770875396,337.46,0.00010812,2]
[331819845,1720770957469,503.68,0.00010959,2]
[331819846,1720771051965,820.51513039,0.00011199,2]
[331819847,1720771051992,137.36112056,0.00011199,2]
[331819848,1720771091887,68.37189715,0.00011199,2]
[331819849,1720771091916,196.37927995,0.00011199,2]
[331819850,1720771128023,2967.65687012,0.00011199,2]
[331819851,1720771128045,1897.28290334,0.00011199,2]
[331819852,1720771128072,4631.66109721,0.00011199,2]
[331819853,1720771152213,155.0,0.00011199,2]
[331819854,1720771190756,155.0,0.00011199,2]
[331819855,1720771202668,227.32181018,0.00011199,2]
[331819856,1720771291029,150.0,0.00024589,120]
[331819857,1720771336110,170.22,9.688e-05,2]
[331819858,1720771350919,167.29932255,0.00011199,2]
[331819859,1720771410784,150.0,0.0001825,120]
[331819860,1720771428983,654.24140879,0.00011199,2]
[331819861,1720771445997,335.79,0.0001023,2]
[331819862,1720771489384,200.0,0.00011199,2]
[331819863,1720771525060,426.67356107,0.00011199,2]
[331819864,1720771531575,150.0,0.00017293,120]
[331819865,1720771645254,2142.06058651,0.00011199,2]
[331819866,1720771672365,227.32181018,0.00011199,2]
[331819867,1720771711044,150.0,0.00023236,120]
[331819868,1720771760670,158.0016101,0.00011199,2]
[331819869,1720771770418,200.0,0.00011199,2]
[331819870,1720771821399,167.29932255,0.00011199,2]
[331819883,1720771831891,-250.0,0.00011879,2]
[331819884,1720771831901,-250.0,0.00011906,2]
[331819886,1720771831910,-301.2,0.00011924,2]
[331819888,1720771831920,-50000.0,0.00011944,2]
[331819889,1720771831929,-200.0,0.00011944,2]
[331819891,1720771831939,-150.0,0.00012025,2]
[331819892,1720771831950,-23890.0,0.00012148,2]